[Event "Early-Titled-Tuesday-Blitz-October-03-2023"]
[Site "Chess.com"]
[Date "2023.10.03"]
[Round "1"]
[White "Balla_Tamas"]
[Black "bascheyaro"]
[Result "0-1"]
[WhiteElo "2451"]
[BlackElo "2801"]
[TimeControl "180+1"]
[EndTime "8:06:10 PDT"]
[Termination "bascheyaro won by resignation"]

1. e4 {[%clk 0:03:00.2]} 1... e6 {[%clk 0:03:00.1]} 2. d4 {[%clk 0:03:00.2]}
2... d5 {[%clk 0:03:01]} 3. Nd2 {[%clk 0:03:00.9]} 3... c5 {[%clk 0:03:01.2]} 4.
exd5 {[%clk 0:03:01.2]} 4... exd5 {[%clk 0:03:02.1]} 5. Ngf3 {[%clk 0:02:59.3]}
5... Nc6 {[%clk 0:03:03]} 6. Bb5 {[%clk 0:02:59.4]} 6... c4 {[%clk 0:03:03.2]}
7. Bxc6+ {[%clk 0:02:54.3]} 7... bxc6 {[%clk 0:03:02.9]} 8. c3 {[%clk
0:02:48.5]} 8... Bd6 {[%clk 0:03:02.8]} 9. O-O {[%clk 0:02:48.1]} 9... Ne7
{[%clk 0:03:02.8]} 10. b3 {[%clk 0:02:48.7]} 10... cxb3 {[%clk 0:03:02.6]} 11.
axb3 {[%clk 0:02:49.6]} 11... c5 {[%clk 0:03:02.4]} 12. Ba3 {[%clk 0:02:40.9]}
12... Qc7 {[%clk 0:03:02.6]} 13. dxc5 {[%clk 0:02:40.4]} 13... Bxc5 {[%clk
0:03:03.5]} 14. Bxc5 {[%clk 0:02:40.8]} 14... Qxc5 {[%clk 0:03:04.4]} 15. c4
{[%clk 0:02:31.7]} 15... O-O {[%clk 0:03:02.7]} 16. cxd5 {[%clk 0:02:28.1]}
16... Bb7 {[%clk 0:02:57.8]} 17. Re1 {[%clk 0:02:22.5]} 17... Bxd5 {[%clk
0:02:50.6]} 18. Rc1 {[%clk 0:02:18.4]} 18... Qb4 {[%clk 0:02:50.5]} 19. Nc4
{[%clk 0:02:18.5]} 19... Rfd8 {[%clk 0:02:47.7]} 20. Qe2 {[%clk 0:02:15.6]}
20... Ng6 {[%clk 0:02:39]} 21. Qe3 {[%clk 0:02:06.5]} 21... h6 {[%clk
0:02:29.2]} 22. h3 {[%clk 0:02:06.4]} 22... Rab8 {[%clk 0:02:20.8]} 23. Qxa7
{[%clk 0:02:01.8]} 23... Bxf3 {[%clk 0:02:20.7]} 24. gxf3 {[%clk 0:01:58]} 24...
Qxb3 {[%clk 0:02:19.7]} 25. Ne3 {[%clk 0:01:49.9]} 25... Qe6 {[%clk 0:02:15.1]}
26. Ng4 {[%clk 0:01:23.6]} 26... Qf5 {[%clk 0:02:15.2]} 27. Rc5 {[%clk
0:01:10.7]} 27... Qxf3 {[%clk 0:02:10.4]} 28. Rc7 {[%clk 0:00:44.1]} 28... Nf4
{[%clk 0:02:03.5]} 29. Ne3 {[%clk 0:00:39.9]} 29... Nxh3+ {[%clk 0:01:44.1]} 30.
Kh2 {[%clk 0:00:40.2]} 30... Qxf2+ {[%clk 0:01:32]} 31. Kxh3 {[%clk 0:00:39.4]}
31... Rb4 {[%clk 0:01:22.6]} 32. Ng2 {[%clk 0:00:29.7]} 32... Qf3+ {[%clk
0:01:10.8]} 33. Kh2 {[%clk 0:00:27.5]} 33... Rd2 {[%clk 0:01:07.8]} 34. Qa8+
{[%clk 0:00:11.3]} 34... Qxa8 {[%clk 0:01:06.3]} 0-1

[Event "Early-Titled-Tuesday-Blitz-October-03-2023"]
[Site "Chess.com"]
[Date "2023.10.03"]
[Round "1"]
[White "bolwin"]
[Black "twofoxniel"]
[Result "0-1"]
[WhiteElo "2251"]
[BlackElo "2597"]
[TimeControl "180+1"]
[EndTime "8:06:10 PDT"]
[Termination "twofoxniel won by resignation"]

1. Nf3 {[%clk 0:02:59.5]} 1... d5 {[%clk 0:02:59.9]} 2. c4 {[%clk 0:03:00.3]}
2... c6 {[%clk 0:03:00.4]} 3. d4 {[%clk 0:03:00.6]} 3... Nf6 {[%clk 0:02:59.8]}
4. Nc3 {[%clk 0:03:01]} 4... dxc4 {[%clk 0:03:00.3]} 5. a4 {[%clk 0:02:59.9]}
5... Bf5 {[%clk 0:02:59.7]} 6. Ne5 {[%clk 0:03:00.3]} 6... Nbd7 {[%clk
0:02:55.1]} 7. Nxc4 {[%clk 0:03:00.6]} 7... Nb6 {[%clk 0:02:54.6]} 8. Ne5 {[%clk
0:03:01.1]} 8... a5 {[%clk 0:02:55]} 9. Bf4 {[%clk 0:03:00.5]} 9... e6 {[%clk
0:02:51.5]} 10. f3 {[%clk 0:02:59.5]} 10... Nfd7 {[%clk 0:02:46.4]} 11. e4
{[%clk 0:02:58.1]} 11... Nxe5 {[%clk 0:02:43.6]} 12. Bxe5 {[%clk 0:02:57.9]}
12... Bg6 {[%clk 0:02:42.1]} 13. Be2 {[%clk 0:02:51.7]} 13... f6 {[%clk
0:02:41.1]} 14. Bg3 {[%clk 0:02:50.9]} 14... Bd6 {[%clk 0:02:39.3]} 15. O-O
{[%clk 0:02:34.4]} 15... Bxg3 {[%clk 0:02:37.9]} 16. hxg3 {[%clk 0:02:35.3]}
16... O-O {[%clk 0:02:38.4]} 17. Qd2 {[%clk 0:02:14.1]} 17... Qd6 {[%clk
0:02:35.6]} 18. Rfd1 {[%clk 0:02:10.2]} 18... Qxg3 {[%clk 0:02:34]} 19. Qe3
{[%clk 0:02:01]} 19... Qc7 {[%clk 0:02:28.3]} 20. Rac1 {[%clk 0:01:59.5]} 20...
Rad8 {[%clk 0:02:22.8]} 21. d5 {[%clk 0:01:52.9]} 21... exd5 {[%clk 0:02:22.6]}
22. exd5 {[%clk 0:01:52.3]} 22... Rfe8 {[%clk 0:02:22.3]} 23. Qf2 {[%clk
0:01:39.4]} 23... Nd7 {[%clk 0:02:18.8]} 24. Nb5 {[%clk 0:01:29.7]} 24... Qe5
{[%clk 0:02:12.2]} 25. dxc6 {[%clk 0:01:24]} 25... bxc6 {[%clk 0:02:12.3]} 26.
Bc4+ {[%clk 0:01:19.3]} 26... Kh8 {[%clk 0:02:12.1]} 27. Nd6 {[%clk 0:01:18.4]}
27... Rf8 {[%clk 0:02:11.4]} 28. f4 {[%clk 0:01:13.4]} 28... Qc5 {[%clk
0:01:57.6]} 29. Nb7 {[%clk 0:00:49.4]} 29... Qxf2+ {[%clk 0:01:35]} 30. Kxf2
{[%clk 0:00:50.3]} 30... Bf5 {[%clk 0:01:30.4]} 31. Nxd8 {[%clk 0:00:49]} 31...
Rxd8 {[%clk 0:01:31.3]} 32. Rd6 {[%clk 0:00:42.7]} 32... Rb8 {[%clk 0:01:29.1]}
33. b3 {[%clk 0:00:40.5]} 33... h5 {[%clk 0:01:22.7]} 34. Rcd1 {[%clk
0:00:35.8]} 34... Nc5 {[%clk 0:01:22.4]} 35. Rd8+ {[%clk 0:00:34.7]} 35... Rxd8
{[%clk 0:01:22.6]} 36. Rxd8+ {[%clk 0:00:35.6]} 36... Kh7 {[%clk 0:01:23.5]} 37.
Rd6 {[%clk 0:00:33.6]} 37... Ne4+ {[%clk 0:01:23]} 38. Ke3 {[%clk 0:00:32.5]}
38... Nxd6 {[%clk 0:01:23.9]} 39. Kd4 {[%clk 0:00:29.5]} 39... Nxc4 {[%clk
0:01:23.3]} 40. Kxc4 {[%clk 0:00:29.1]} 40... Be4 {[%clk 0:01:22.2]} 0-1

[Event "Early-Titled-Tuesday-Blitz-October-03-2023"]
[Site "Chess.com"]
[Date "2023.10.03"]
[Round "1"]
[White "taleslascando"]
[Black "Orest_Vovk"]
[Result "0-1"]
[WhiteElo "2009"]
[BlackElo "2528"]
[TimeControl "180+1"]
[EndTime "8:06:10 PDT"]
[Termination "Orest_Vovk won on time"]

1. e4 {[%clk 0:03:00.9]} 1... g5 {[%clk 0:02:58.8]} 2. d4 {[%clk 0:02:58.1]}
2... g4 {[%clk 0:02:58.8]} 3. Nc3 {[%clk 0:02:52.3]} 3... Bg7 {[%clk 0:02:58.4]}
4. f4 {[%clk 0:02:51.1]} 4... c5 {[%clk 0:02:58.1]} 5. d5 {[%clk 0:02:43]} 5...
Bxc3+ {[%clk 0:02:57.6]} 6. bxc3 {[%clk 0:02:42.8]} 6... d6 {[%clk 0:02:57.8]}
7. c4 {[%clk 0:02:40.9]} 7... Nf6 {[%clk 0:02:54.6]} 8. Bd3 {[%clk 0:02:38.3]}
8... Qa5+ {[%clk 0:02:43.8]} 9. Qd2 {[%clk 0:02:36.3]} 9... Qa4 {[%clk
0:02:41.9]} 10. Bb2 {[%clk 0:02:31.3]} 10... Rg8 {[%clk 0:02:36.2]} 11. e5
{[%clk 0:02:12.5]} 11... dxe5 {[%clk 0:02:24]} 12. fxe5 {[%clk 0:02:11]} 12...
Nfd7 {[%clk 0:02:23.9]} 13. Bxh7 {[%clk 0:01:55.9]} 13... Rg5 {[%clk 0:02:08.2]}
14. O-O-O {[%clk 0:01:26.5]} 14... Rxe5 {[%clk 0:02:02.6]} 15. Bxe5 {[%clk
0:01:17.5]} 15... Nxe5 {[%clk 0:02:03.5]} 16. Qg5 {[%clk 0:01:01.4]} 16... Nxc4
{[%clk 0:01:41.3]} 17. Qg8+ {[%clk 0:00:51.8]} 17... Kd7 {[%clk 0:01:40.9]} 18.
Bf5+ {[%clk 0:00:51.9]} 18... Kd6 {[%clk 0:01:38.9]} 19. Qd8+ {[%clk 0:00:13.6]}
19... Nd7 {[%clk 0:01:31.2]} 20. Rd2 {[%clk 0:00:12]} 20... Qa3+ {[%clk
0:01:26.8]} 21. Kd1 {[%clk 0:00:11.9]} 21... Ne3+ {[%clk 0:01:27.1]} 22. Ke2
{[%clk 0:00:10.5]} 22... Nxf5 {[%clk 0:01:28]} 23. h3 {[%clk 0:00:07.2]} 23...
Ng3+ {[%clk 0:01:15.9]} 24. Kd1 {[%clk 0:00:06.8]} 24... Nxh1 {[%clk 0:01:16.1]}
25. Qh8 {[%clk 0:00:05.3]} 25... Ne5 {[%clk 0:01:09.1]} 26. Qh6+ {[%clk
0:00:03.3]} 26... f6 {[%clk 0:01:08.5]} 27. Ne2 {[%clk 0:00:01.7]} 27... Nf2+
{[%clk 0:01:06.8]} 28. Ke1 {[%clk 0:00:01.4]} 28... Ne4 {[%clk 0:01:03.3]} 0-1

[Event "Early-Titled-Tuesday-Blitz-October-03-2023"]
[Site "Chess.com"]
[Date "2023.10.03"]
[Round "1"]
[White "jasonbolivar"]
[Black "borocotoajua"]
[Result "0-1"]
[WhiteElo "2259"]
[BlackElo "2603"]
[TimeControl "180+1"]
[EndTime "8:06:11 PDT"]
[Termination "borocotoajua won on time"]

1. e4 {[%clk 0:03:00.9]} 1... c6 {[%clk 0:02:57.1]} 2. Nf3 {[%clk 0:02:57.6]}
2... d5 {[%clk 0:02:56.7]} 3. d3 {[%clk 0:02:58]} 3... Bg4 {[%clk 0:02:55.8]} 4.
h3 {[%clk 0:02:57]} 4... Bxf3 {[%clk 0:02:54]} 5. Qxf3 {[%clk 0:02:56.7]} 5...
e6 {[%clk 0:02:54.5]} 6. g3 {[%clk 0:02:49.5]} 6... Nd7 {[%clk 0:02:52.8]} 7.
Bg2 {[%clk 0:02:48.8]} 7... Ngf6 {[%clk 0:02:51.4]} 8. O-O {[%clk 0:02:40.8]}
8... Bd6 {[%clk 0:02:50.4]} 9. Qe2 {[%clk 0:02:35.5]} 9... dxe4 {[%clk
0:02:39.4]} 10. dxe4 {[%clk 0:02:31.3]} 10... e5 {[%clk 0:02:39.3]} 11. Rd1
{[%clk 0:02:29.1]} 11... Qc7 {[%clk 0:02:36.7]} 12. Nd2 {[%clk 0:02:21.8]} 12...
O-O {[%clk 0:02:33.2]} 13. Nc4 {[%clk 0:02:20.6]} 13... Bc5 {[%clk 0:02:30.7]}
14. a4 {[%clk 0:02:18.3]} 14... Rfe8 {[%clk 0:02:24.6]} 15. c3 {[%clk
0:02:15.5]} 15... a5 {[%clk 0:02:23.5]} 16. Bg5 {[%clk 0:02:11]} 16... h6 {[%clk
0:02:18.5]} 17. Be3 {[%clk 0:02:10.7]} 17... Bf8 {[%clk 0:02:12.9]} 18. g4
{[%clk 0:01:12.3]} 18... Nc5 {[%clk 0:02:06.9]} 19. f3 {[%clk 0:01:04]} 19...
Ne6 {[%clk 0:02:04.4]} 20. Bb6 {[%clk 0:00:53.8]} 20... Bc5+ {[%clk 0:02:02.9]}
21. Bxc5 {[%clk 0:00:51.2]} 21... Nxc5 {[%clk 0:02:03.8]} 22. Nd6 {[%clk
0:00:43.2]} 22... Red8 {[%clk 0:02:00.4]} 23. Nf5 {[%clk 0:00:39.6]} 23... Ne6
{[%clk 0:02:00.2]} 24. Bf1 {[%clk 0:00:35]} 24... Nf4 {[%clk 0:01:59.6]} 25. Qf2
{[%clk 0:00:26.8]} 25... Kh7 {[%clk 0:01:43.2]} 26. Kh2 {[%clk 0:00:19.6]} 26...
b6 {[%clk 0:01:31.7]} 27. Qh4 {[%clk 0:00:16.4]} 27... Ng6 {[%clk 0:01:26.4]}
28. Qf2 {[%clk 0:00:14.9]} 28... Nd7 {[%clk 0:01:24.8]} 29. Bc4 {[%clk 0:00:12]}
29... Nc5 {[%clk 0:01:23.1]} 30. Qe3 {[%clk 0:00:07.5]} 30... Nf4 {[%clk
0:01:16.7]} 31. h4 {[%clk 0:00:07.4]} 31... g6 {[%clk 0:01:12.6]} 32. Ng3 {[%clk
0:00:05]} 32... Qe7 {[%clk 0:01:12.8]} 33. h5 {[%clk 0:00:03.5]} 33... Qh4+
{[%clk 0:01:12.2]} 0-1

[Event "Early-Titled-Tuesday-Blitz-October-03-2023"]
[Site "Chess.com"]
[Date "2023.10.03"]
[Round "1"]
[White "FERNANDEZL1983"]
[Black "NowInChess"]
[Result "1-0"]
[WhiteElo "2600"]
[BlackElo "2255"]
[TimeControl "180+1"]
[EndTime "8:06:13 PDT"]
[Termination "FERNANDEZL1983 won on time"]

1. e4 {[%clk 0:02:58.5]} 1... e6 {[%clk 0:02:59.8]} 2. d3 {[%clk 0:02:57.9]}
2... d5 {[%clk 0:03:00.4]} 3. Nd2 {[%clk 0:02:58.2]} 3... Nf6 {[%clk 0:02:59.7]}
4. Ngf3 {[%clk 0:02:58.4]} 4... Nc6 {[%clk 0:02:56.5]} 5. g3 {[%clk 0:02:57.8]}
5... dxe4 {[%clk 0:02:56.1]} 6. dxe4 {[%clk 0:02:58]} 6... e5 {[%clk 0:02:56.7]}
7. Bg2 {[%clk 0:02:58.2]} 7... Bc5 {[%clk 0:02:56.9]} 8. O-O {[%clk 0:02:58.2]}
8... O-O {[%clk 0:02:56.6]} 9. h3 {[%clk 0:02:57.4]} 9... a5 {[%clk 0:02:53.4]}
10. c3 {[%clk 0:02:57.6]} 10... h6 {[%clk 0:02:22.1]} 11. Re1 {[%clk 0:02:49.5]}
11... Be6 {[%clk 0:02:18.9]} 12. Bf1 {[%clk 0:02:41.7]} 12... Qd7 {[%clk
0:02:15.7]} 13. Nc4 {[%clk 0:02:31.9]} 13... Bxc4 {[%clk 0:01:59.3]} 14. Qxd7
{[%clk 0:02:30.1]} 14... Nxd7 {[%clk 0:02:00.2]} 15. Bxc4 {[%clk 0:02:29.8]}
15... Nb6 {[%clk 0:01:41.9]} 16. Bb5 {[%clk 0:02:29.6]} 16... f6 {[%clk
0:01:39.4]} 17. Nh4 {[%clk 0:02:26]} 17... Na7 {[%clk 0:01:36.1]} 18. Be2 {[%clk
0:02:19]} 18... Rad8 {[%clk 0:01:30.5]} 19. Kg2 {[%clk 0:02:19.4]} 19... Nc6
{[%clk 0:01:21.2]} 20. b3 {[%clk 0:02:17.9]} 20... Ne7 {[%clk 0:01:08]} 21. a4
{[%clk 0:02:04.3]} 21... Kf7 {[%clk 0:01:05]} 22. Ra2 {[%clk 0:02:03.6]} 22...
Rd6 {[%clk 0:00:51.6]} 23. Bh5+ {[%clk 0:02:00.3]} 23... g6 {[%clk 0:00:50.4]}
24. Be2 {[%clk 0:01:57.2]} 24... h5 {[%clk 0:00:48.1]} 25. Rd2 {[%clk
0:01:56.3]} 25... Rxd2 {[%clk 0:00:46.1]} 26. Bxd2 {[%clk 0:01:55.8]} 26... Rd8
{[%clk 0:00:46.8]} 27. Bc1 {[%clk 0:01:56.1]} 27... c6 {[%clk 0:00:39.9]} 28.
Rd1 {[%clk 0:01:53.4]} 28... Rxd1 {[%clk 0:00:38.9]} 29. Bxd1 {[%clk 0:01:54.1]}
29... Na8 {[%clk 0:00:27.1]} 30. Nf3 {[%clk 0:01:51.6]} 30... Nc7 {[%clk
0:00:26.3]} 31. Nd2 {[%clk 0:01:51.4]} 31... b6 {[%clk 0:00:17.6]} 32. Nc4
{[%clk 0:01:50.4]} 32... Nc8 {[%clk 0:00:17.8]} 33. f4 {[%clk 0:01:48.9]} 33...
exf4 {[%clk 0:00:15]} 34. gxf4 {[%clk 0:01:48.9]} 34... Ne6 {[%clk 0:00:15.5]}
35. f5 {[%clk 0:01:47.1]} 35... Nc7 {[%clk 0:00:10.9]} 36. Bf4 {[%clk
0:01:45.4]} 36... Ne8 {[%clk 0:00:10]} 37. e5 {[%clk 0:01:41.3]} 37... g5 {[%clk
0:00:05.8]} 38. Bxh5+ {[%clk 0:01:40.4]} 38... Ke7 {[%clk 0:00:05.4]} 39. Bc1
{[%clk 0:01:37.9]} 39... fxe5 {[%clk 0:00:04.5]} 40. Bxg5+ {[%clk 0:01:35.8]}
40... Kf8 {[%clk 0:00:03.9]} 41. Nxe5 {[%clk 0:01:35.6]} 41... Ne7 {[%clk
0:00:03.3]} 42. Nd7+ {[%clk 0:01:34.7]} 42... Kg7 {[%clk 0:00:02.9]} 43. Bxe8
{[%clk 0:01:33.3]} 43... Nxf5 {[%clk 0:00:01.8]} 44. Nxc5 {[%clk 0:01:33.3]}
44... bxc5 {[%clk 0:00:01.9]} 45. Bxc6 {[%clk 0:01:33.6]} 1-0

[Event "Early-Titled-Tuesday-Blitz-October-03-2023"]
[Site "Chess.com"]
[Date "2023.10.03"]
[Round "1"]
[White "UNSTOPPABLE_LEGEND"]
[Black "Mysterio47"]
[Result "1-0"]
[WhiteElo "2436"]
[BlackElo "2727"]
[TimeControl "180+1"]
[EndTime "8:06:14 PDT"]
[Termination "UNSTOPPABLE_LEGEND won by resignation"]

1. e4 {[%clk 0:02:59.2]} 1... e5 {[%clk 0:02:58.2]} 2. Nf3 {[%clk 0:02:59]} 2...
Nc6 {[%clk 0:02:57.2]} 3. Bc4 {[%clk 0:02:58.4]} 3... Nf6 {[%clk 0:02:57.1]} 4.
d3 {[%clk 0:02:57]} 4... Bc5 {[%clk 0:02:57.2]} 5. c3 {[%clk 0:02:57.3]} 5...
O-O {[%clk 0:02:56.2]} 6. O-O {[%clk 0:02:57.1]} 6... d5 {[%clk 0:02:56.4]} 7.
exd5 {[%clk 0:02:56.8]} 7... Nxd5 {[%clk 0:02:57.3]} 8. Re1 {[%clk 0:02:57.5]}
8... Bg4 {[%clk 0:02:55.6]} 9. h3 {[%clk 0:02:57.5]} 9... Bh5 {[%clk 0:02:55.1]}
10. Nbd2 {[%clk 0:02:57.6]} 10... Nb6 {[%clk 0:02:55]} 11. Bb3 {[%clk
0:02:56.5]} 11... Qxd3 {[%clk 0:02:55.3]} 12. Nxe5 {[%clk 0:02:57]} 12... Qf5
{[%clk 0:02:55.4]} 13. Nef3 {[%clk 0:02:57.2]} 13... Rae8 {[%clk 0:02:51]} 14.
Bc2 {[%clk 0:02:29.6]} 14... Qd7 {[%clk 0:02:26.5]} 15. Ne4 {[%clk 0:02:23.9]}
15... Qxd1 {[%clk 0:02:24.5]} 16. Rxd1 {[%clk 0:02:24.8]} 16... Be7 {[%clk
0:02:14.7]} 17. Bf4 {[%clk 0:02:24.3]} 17... Bd8 {[%clk 0:02:09.8]} 18. Nc5
{[%clk 0:01:59.1]} 18... Bxf3 {[%clk 0:02:01.6]} 19. gxf3 {[%clk 0:02:00]} 19...
Re2 {[%clk 0:01:55.8]} 20. Bd3 {[%clk 0:01:57]} 20... Ree8 {[%clk 0:01:30.2]}
21. Nxb7 {[%clk 0:01:53.9]} 21... Be7 {[%clk 0:01:27.5]} 22. Bb5 {[%clk
0:01:52]} 22... Nd8 {[%clk 0:01:13.9]} 23. Bxe8 {[%clk 0:01:34.5]} 23... Nxb7
{[%clk 0:01:14.3]} 24. Bc6 {[%clk 0:01:32.8]} 24... Na5 {[%clk 0:01:14.5]} 25.
Be4 {[%clk 0:01:26.9]} 25... Nac4 {[%clk 0:01:14]} 26. b3 {[%clk 0:01:25.5]}
26... Nd6 {[%clk 0:01:14.5]} 27. c4 {[%clk 0:01:25.2]} 27... Bf6 {[%clk
0:01:10.7]} 28. Rac1 {[%clk 0:01:23.8]} 28... Nxe4 {[%clk 0:01:10.9]} 29. fxe4
{[%clk 0:01:24.7]} 29... c5 {[%clk 0:01:10.4]} 30. Rd6 {[%clk 0:01:13.6]} 30...
h5 {[%clk 0:01:04.6]} 31. Rcd1 {[%clk 0:01:12.5]} 31... Re8 {[%clk 0:01:03.7]}
32. f3 {[%clk 0:01:02.2]} 32... Bd4+ {[%clk 0:01:03.5]} 33. R6xd4 {[%clk
0:00:58.8]} 33... cxd4 {[%clk 0:01:03.7]} 34. Rxd4 {[%clk 0:00:59.7]} 34... Rc8
{[%clk 0:00:59.5]} 35. a4 {[%clk 0:00:59.5]} 35... Kf8 {[%clk 0:00:48.7]} 36. a5
{[%clk 0:00:58.5]} 36... Na8 {[%clk 0:00:49.1]} 37. Rd7 {[%clk 0:00:58.2]} 37...
a6 {[%clk 0:00:49.4]} 38. Ra7 {[%clk 0:00:57.1]} 38... f6 {[%clk 0:00:49.6]} 39.
Rxa6 {[%clk 0:00:57.2]} 39... Kf7 {[%clk 0:00:46.9]} 40. Ra7+ {[%clk 0:00:57.2]}
40... Kg6 {[%clk 0:00:47.4]} 41. a6 {[%clk 0:00:57.4]} 41... Nb6 {[%clk
0:00:46.9]} 42. Rb7 {[%clk 0:00:57.3]} 42... Na8 {[%clk 0:00:46.1]} 43. a7
{[%clk 0:00:57.8]} 1-0

[Event "Early-Titled-Tuesday-Blitz-October-03-2023"]
[Site "Chess.com"]
[Date "2023.10.03"]
[Round "1"]
[White "DarZay"]
[Black "HATilay"]
[Result "0-1"]
[WhiteElo "2192"]
[BlackElo "2562"]
[TimeControl "180+1"]
[EndTime "8:06:16 PDT"]
[Termination "HATilay won by resignation"]

1. e4 {[%clk 0:03:00.4]} 1... c5 {[%clk 0:02:59.3]} 2. Nf3 {[%clk 0:02:59.8]}
2... e6 {[%clk 0:02:59.9]} 3. d4 {[%clk 0:02:59.9]} 3... cxd4 {[%clk 0:03:00.7]}
4. Nxd4 {[%clk 0:03:00.3]} 4... a6 {[%clk 0:03:01.2]} 5. c4 {[%clk 0:02:58.3]}
5... Nf6 {[%clk 0:03:00.8]} 6. Nc3 {[%clk 0:02:57.6]} 6... Bb4 {[%clk
0:03:01.5]} 7. Bd3 {[%clk 0:02:47.8]} 7... Nc6 {[%clk 0:03:01.5]} 8. Nb3 {[%clk
0:02:42.5]} 8... O-O {[%clk 0:02:56.3]} 9. O-O {[%clk 0:02:41.9]} 9... d5 {[%clk
0:02:55.5]} 10. cxd5 {[%clk 0:02:39.6]} 10... exd5 {[%clk 0:02:52.9]} 11. exd5
{[%clk 0:02:31.2]} 11... Bxc3 {[%clk 0:02:44.2]} 12. dxc6 {[%clk 0:02:23.7]}
12... Be5 {[%clk 0:02:44.6]} 13. f4 {[%clk 0:02:15.1]} 13... Bc7 {[%clk
0:02:17.5]} 14. cxb7 {[%clk 0:01:47.6]} 14... Bxb7 {[%clk 0:02:17.4]} 15. Be3
{[%clk 0:01:47.6]} 15... Qd5 {[%clk 0:02:06.3]} 16. Qc2 {[%clk 0:01:45.7]} 16...
Ng4 {[%clk 0:01:52.3]} 17. Bc5 {[%clk 0:01:39.8]} 17... Rfc8 {[%clk 0:01:14.5]}
18. Bxh7+ {[%clk 0:01:37.2]} 18... Kh8 {[%clk 0:01:14.3]} 19. Rad1 {[%clk
0:01:13.6]} 19... Qh5 {[%clk 0:01:12.6]} 20. h3 {[%clk 0:01:03.9]} 20... Nf6
{[%clk 0:00:46.3]} 21. Bf5 {[%clk 0:00:56.5]} 21... Re8 {[%clk 0:00:45.9]} 22.
Kh2 {[%clk 0:00:17.2]} 22... Re2 {[%clk 0:00:42.3]} 0-1

[Event "Early-Titled-Tuesday-Blitz-October-03-2023"]
[Site "Chess.com"]
[Date "2023.10.03"]
[Round "1"]
[White "jaskol95"]
[Black "InitiatingASC"]
[Result "1-0"]
[WhiteElo "2630"]
[BlackElo "2327"]
[TimeControl "180+1"]
[EndTime "8:06:17 PDT"]
[Termination "jaskol95 won by resignation"]

1. d4 {[%clk 0:03:00.9]} 1... d5 {[%clk 0:02:53.7]} 2. Nc3 {[%clk 0:03:01]} 2...
c5 {[%clk 0:02:52.4]} 3. e4 {[%clk 0:02:55.2]} 3... cxd4 {[%clk 0:02:51.7]} 4.
Qxd4 {[%clk 0:02:55.2]} 4... dxe4 {[%clk 0:02:42.1]} 5. Qxd8+ {[%clk 0:02:54.3]}
5... Kxd8 {[%clk 0:02:43]} 6. Nxe4 {[%clk 0:02:54.8]} 6... Bf5 {[%clk
0:02:41.4]} 7. Bd3 {[%clk 0:02:51.3]} 7... e6 {[%clk 0:02:38.4]} 8. Bf4 {[%clk
0:02:42.8]} 8... Bb4+ {[%clk 0:02:13.1]} 9. c3 {[%clk 0:02:30.3]} 9... Be7
{[%clk 0:02:13.1]} 10. O-O-O {[%clk 0:02:29.7]} 10... Ke8 {[%clk 0:02:05.6]} 11.
Nf3 {[%clk 0:02:07]} 11... Nc6 {[%clk 0:01:56]} 12. Rhe1 {[%clk 0:02:00.7]}
12... Rd8 {[%clk 0:01:54.1]} 13. Bc2 {[%clk 0:01:38.6]} 13... Bg4 {[%clk
0:01:41.1]} 14. Rxd8+ {[%clk 0:01:36.9]} 14... Nxd8 {[%clk 0:01:40.2]} 15. Ne5
{[%clk 0:01:34.5]} 15... Bf5 {[%clk 0:01:35.9]} 16. Ba4+ {[%clk 0:01:25.8]}
16... Kf8 {[%clk 0:01:25.5]} 17. Nd7+ {[%clk 0:01:26.1]} 17... Ke8 {[%clk
0:01:26.1]} 18. Nd6+ {[%clk 0:01:02.7]} 18... Bxd6 {[%clk 0:01:25.3]} 19. Bxd6
{[%clk 0:01:03.6]} 19... Nc6 {[%clk 0:01:26.1]} 20. Ne5 {[%clk 0:01:01.1]} 20...
Ne7 {[%clk 0:01:21.6]} 21. Rd1 {[%clk 0:00:41.6]} 21... f6 {[%clk 0:00:42.6]}
22. Bxe7 {[%clk 0:00:40.7]} 22... Kxe7 {[%clk 0:00:41]} 23. Rd7+ {[%clk
0:00:34.3]} 23... Ke8 {[%clk 0:00:37.8]} 24. Rxb7 {[%clk 0:00:33.9]} 24... fxe5
{[%clk 0:00:37.5]} 25. Bxc6+ {[%clk 0:00:32.5]} 25... Kd8 {[%clk 0:00:38.2]} 26.
Rb8+ {[%clk 0:00:32.9]} 26... Kc7 {[%clk 0:00:38.5]} 27. Rxh8 {[%clk 0:00:33.6]}
27... Kxc6 {[%clk 0:00:39.2]} 28. Kd2 {[%clk 0:00:33.2]} 1-0

[Event "Early-Titled-Tuesday-Blitz-October-03-2023"]
[Site "Chess.com"]
[Date "2023.10.03"]
[Round "1"]
[White "Hasangatin_Ramil"]
[Black "pasteta13"]
[Result "1/2-1/2"]
[WhiteElo "2728"]
[BlackElo "2427"]
[TimeControl "180+1"]
[EndTime "8:06:18 PDT"]
[Termination "Game drawn by repetition"]

1. e4 {[%clk 0:02:59.6]} 1... c5 {[%clk 0:02:59.6]} 2. Nf3 {[%clk 0:02:59.3]}
2... g6 {[%clk 0:02:59.8]} 3. Bc4 {[%clk 0:02:57]} 3... Bg7 {[%clk 0:02:59.5]}
4. O-O {[%clk 0:02:57.6]} 4... Nc6 {[%clk 0:02:58.1]} 5. c3 {[%clk 0:02:57.8]}
5... e6 {[%clk 0:02:57.9]} 6. d4 {[%clk 0:02:58.4]} 6... cxd4 {[%clk 0:02:58.1]}
7. cxd4 {[%clk 0:02:59.3]} 7... d5 {[%clk 0:02:57.6]} 8. exd5 {[%clk 0:03:00.2]}
8... exd5 {[%clk 0:02:57.7]} 9. Bb5 {[%clk 0:03:01.1]} 9... Ne7 {[%clk
0:02:53.5]} 10. Bg5 {[%clk 0:03:01.5]} 10... O-O {[%clk 0:02:42.6]} 11. Bxc6
{[%clk 0:02:58.9]} 11... bxc6 {[%clk 0:02:42.6]} 12. Nbd2 {[%clk 0:02:59.1]}
12... Qd6 {[%clk 0:02:26.1]} 13. Nb3 {[%clk 0:02:52.8]} 13... Nf5 {[%clk
0:02:06.5]} 14. Qd2 {[%clk 0:02:52.1]} 14... a5 {[%clk 0:01:50.3]} 15. Bf4
{[%clk 0:02:49.2]} 15... Qb4 {[%clk 0:01:44.5]} 16. Qxb4 {[%clk 0:02:39.1]}
16... axb4 {[%clk 0:01:45.4]} 17. Rfc1 {[%clk 0:02:39]} 17... Ba6 {[%clk
0:01:41.5]} 18. g4 {[%clk 0:02:32.6]} 18... Be2 {[%clk 0:01:32.5]} 19. gxf5
{[%clk 0:02:18.2]} 19... Bxf3 {[%clk 0:01:30.1]} 20. Rxc6 {[%clk 0:02:18.5]}
20... gxf5 {[%clk 0:01:16.1]} 21. Be5 {[%clk 0:02:09.9]} 21... Rfe8 {[%clk
0:00:57.7]} 22. Bxg7 {[%clk 0:01:40.7]} 22... Kxg7 {[%clk 0:00:58.6]} 23. Rc2
{[%clk 0:01:40.8]} 23... Kf6 {[%clk 0:00:42.7]} 24. Nc5 {[%clk 0:01:38.9]} 24...
Re7 {[%clk 0:00:32.6]} 25. h4 {[%clk 0:01:16.3]} 25... Rg8+ {[%clk 0:00:26.4]}
26. Kh2 {[%clk 0:01:16.6]} 26... Rg4 {[%clk 0:00:19.9]} 27. Kh3 {[%clk
0:01:16.9]} 27... Bg2+ {[%clk 0:00:15.1]} 28. Kh2 {[%clk 0:01:17.1]} 28... Bf3
{[%clk 0:00:10.4]} 29. Kh3 {[%clk 0:00:56]} 29... Bg2+ {[%clk 0:00:07.8]} 30.
Kh2 {[%clk 0:00:56.1]} 30... Bf3 {[%clk 0:00:08.6]} 1/2-1/2